bitfinex/quotes_BTCUSD_20240730
["timestamp","ask_amount","ask_price","bid_price","bid_amount"]
[1722316636280,1.79962358,66707.0,66706.0,0.0160947]
[1722316637269,1.73281152,66707.0,66706.0,0.0160947]
[1722316637472,1.77683831,66707.0,66706.0,0.0160947]
[1722316638223,1.71002514,66707.0,66706.0,0.0160947]
[1722316638508,1.71921946,66707.0,66706.0,0.0160947]
[1722316639052,1.81298943,66707.0,66706.0,0.0160947]
[1722316639258,1.74617626,66707.0,66706.0,0.0160947]
[1722316639636,1.81298943,66707.0,66706.0,0.0160947]
[1722316640578,1.83726916,66707.0,66706.0,0.0160947]
[1722316640934,1.83726916,66707.0,66706.0,0.0977947]
[1722316640935,0.87355815,66707.0,66706.0,0.0977947]
[1722316641138,0.12068056,66707.0,66706.0,0.1622947]
[1722316641421,0.39330068,66707.0,66706.0,0.1622947]
[1722316641629,0.01,66707.0,66706.0,0.1622947]
[1722316642489,0.008,66707.0,66706.0,0.1622947]
[1722316642833,0.008,66707.0,66706.0,0.1672947]
[1722316642834,0.120927,66707.0,66706.0,0.1672947]
[1722316643244,0.002,66707.0,66706.0,0.1672947]
[1722316644362,0.121927,66707.0,66706.0,0.1672947]
[1722316644789,0.601635,66707.0,66706.0,0.1672947]
[1722316645192,0.361781,66707.0,66706.0,0.1672947]
[1722316645365,0.002,66707.0,66706.0,0.1672947]
[1722316645976,0.121927,66707.0,66706.0,0.1672947]
[1722316646173,0.361781,66707.0,66706.0,0.1672947]
[1722316646776,0.601635,66707.0,66706.0,0.1672947]
[1722316647748,0.63149821,66707.0,66706.0,0.0210947]
[1722316647954,0.87135221,66707.0,66706.0,0.0210947]
[1722316648305,0.93747151,66707.0,66706.0,0.0210947]
[1722316648490,0.96098847,66707.0,66706.0,0.0210947]
[1722316648896,0.93747151,66707.0,66706.0,0.0210947]
[1722316649309,1.40542224,66707.0,66706.0,0.0210947]
[1722316649514,1.47238355,66707.0,66706.0,0.0210947]
[1722316649910,1.32795855,66707.0,66706.0,0.0210947]
[1722316650156,1.40546995,66707.0,66706.0,0.0210947]
[1722316650330,1.37262751,66707.0,66706.0,0.0210947]
[1722316650530,1.32795855,66707.0,66706.0,0.0210947]
[1722316650758,0.93747151,66707.0,66706.0,0.0210947]
[1722316651146,0.98214586,66707.0,66706.0,0.0210947]
[1722316651349,0.93747151,66707.0,66706.0,0.0210947]
[1722316651574,1.00447039,66707.0,66706.0,0.0210947]
[1722316651769,0.93747151,66707.0,66706.0,0.0210947]
[1722316652002,1.08206338,66707.0,66706.0,0.0210947]
[1722316652212,1.0385589,66707.0,66706.0,0.0210947]
[1722316652606,1.12789074,66707.0,66706.0,0.0210947]
[1722316653266,1.11832284,66707.0,66706.0,0.0210947]
[1722316653465,1.10658237,66707.0,66706.0,0.0210947]
[1722316653693,1.03861056,66707.0,66706.0,0.0210947]
[1722316653842,1.01509287,66707.0,66706.0,0.0210947]
[1722316654046,0.93747151,66707.0,66706.0,0.0210947]
[1722316654249,1.0151928,66707.0,66706.0,0.0210947]
[1722316654673,1.10455504,66707.0,66706.0,0.0210947]
[1722316654889,1.0151928,66707.0,66706.0,0.0210947]
[1722316655021,1.08221609,66707.0,66706.0,0.0210947]
[1722316655218,1.10455504,66707.0,66706.0,0.0210947]
[1722316655572,1.0151928,66707.0,66706.0,0.0210947]
[1722316656339,1.10455504,66707.0,66706.0,0.0210947]
[1722316656695,1.10473521,66707.0,66706.0,0.0210947]
[1722316657279,1.12825297,66707.0,66706.0,0.0210947]
[1722316657459,1.10473521,66707.0,66706.0,0.0210947]
[1722316657884,1.20827175,66707.0,66706.0,0.0210947]
[1722316658083,1.10473521,66707.0,66706.0,0.0210947]
[1722316658775,1.01536317,66707.0,66706.0,0.0210947]
[1722316659245,1.12707822,66707.0,66706.0,0.0210947]
[1722316659712,1.01536317,66707.0,66706.0,0.0210947]
[1722316659915,0.93747151,66707.0,66706.0,0.0210947]
[1722316660155,1.12736756,66707.0,66706.0,0.0210947]
[1722316660305,0.93747151,66707.0,66706.0,0.0210947]
[1722316660507,1.01562882,66707.0,66706.0,0.0210947]
[1722316660754,1.15089158,66707.0,66706.0,0.0210947]
[1722316661131,1.12737386,66707.0,66706.0,0.0210947]
[1722316661324,1.01562882,66707.0,66706.0,0.0210947]
[1722316661531,1.12738663,66707.0,66706.0,0.0210947]
[1722316661811,1.12738316,66707.0,66706.0,0.0210947]
[1722316662223,1.12730249,66707.0,66706.0,0.0210947]
[1722316662660,1.01554834,66707.0,66706.0,0.0210947]
[1722316663039,0.93747151,66707.0,66706.0,0.0210947]
[1722316663245,1.03831108,66707.0,66706.0,0.0210947]
[1722316663839,1.01551853,66707.0,66706.0,0.0210947]
[1722316664468,1.03903593,66707.0,66706.0,0.0210947]
[1722316666405,0.96098891,66707.0,66706.0,0.0210947]
[1722316666579,1.04016523,66707.0,66706.0,0.0210947]
[1722316668183,1.28001923,66707.0,66706.0,0.0210947]
[1722316668359,1.56490914,66707.0,66706.0,0.0210947]
[1722316669169,1.17436082,66707.0,66706.0,0.0210947]
[1722316669305,1.04016523,66707.0,66706.0,0.0210947]
[1722316669508,0.96098891,66707.0,66706.0,0.0210947]
[1722316669707,1.03967616,66707.0,66706.0,0.0210947]
[1722316670122,1.17435074,66707.0,66706.0,0.0210947]
[1722316671244,1.17435309,66707.0,66706.0,0.0210947]
[1722316671842,1.32504741,66707.0,66706.0,0.0210947]
[1722316672072,1.32492137,66707.0,66706.0,0.0210947]
[1722316672280,1.32492202,66707.0,66706.0,0.0210947]
[1722316672878,1.32492294,66707.0,66706.0,0.0210947]
[1722316673981,1.30140554,66707.0,66706.0,0.0210947]
[1722316674183,1.69189258,66707.0,66706.0,0.0210947]
[1722316675300,1.55760206,66707.0,66706.0,0.0210947]
[1722316675970,1.31774806,66707.0,66706.0,0.0210947]
[1722316676171,1.23879887,66707.0,66706.0,0.0210947]
[1722316676344,1.31777358,66707.0,66706.0,0.0210947]
[1722316676550,1.16707926,66707.0,66706.0,0.0210947]
[1722316677525,1.30140117,66707.0,66706.0,0.0112747]
[1722316677729,1.16707926,66707.0,66706.0,0.0112747]
[1722316678986,1.40693326,66707.0,66706.0,0.0112747]
[1722316679131,1.16707926,66707.0,66706.0,0.0112747]
[1722316679332,1.08810455,66707.0,66706.0,0.0112747]
[1722316679533,1.48593655,66707.0,66706.0,0.0112747]
[1722316679932,1.7531557,66707.0,66706.0,0.0112747]
[1722316680320,1.9650645,66707.0,66706.0,0.0112747]
[1722316680495,2.11620926,66707.0,66706.0,0.0112747]
[1722316680650,2.11520926,66707.0,66706.0,0.0062747]
[1722316680990,2.11420926,66707.0,66706.0,0.0062747]
[1722316681220,2.11420926,66707.0,66706.0,0.0072747]
[1722316681221,1.49251046,66707.0,66706.0,0.0072747]
[1722316681431,1.63965522,66707.0,66706.0,0.0062747]
[1722316681637,1.63965522,66707.0,66706.0,0.1430747]
[1722316681638,0.9071251,66707.0,66706.0,0.1430747]
[1722316681813,0.9071251,66707.0,66706.0,0.1440747]
[1722316681814,1.11980113,66707.0,66706.0,0.1440747]
[1722316681954,0.97743327,66707.0,66706.0,0.1430747]
[1722316682174,0.99143327,66707.0,66706.0,0.1430747]
[1722316682379,0.98091416,66707.0,66706.0,0.1440747]
[1722316682731,0.96691416,66707.0,66706.0,0.1440747]
[1722316682889,1.11128202,66707.0,66706.0,0.1440747]
[1722316683088,0.97691416,66707.0,66706.0,0.1440747]
[1722316683538,1.21676816,66707.0,66706.0,0.1440747]
[1722316683693,1.20376816,66707.0,66706.0,0.1430747]
[1722316683899,0.96391416,66707.0,66706.0,0.1430747]
[1722316684099,0.95791416,66707.0,66706.0,0.1430747]
[1722316684303,0.95750313,66707.0,66706.0,0.1430747]
[1722316684497,1.07826811,66707.0,66706.0,0.1430747]
[1722316684746,0.96950313,66707.0,66706.0,0.1430747]
[1722316684972,0.26986813,66707.0,66706.0,0.1430747]
[1722316685163,0.55075199,66707.0,66706.0,0.1430747]
[1722316685309,0.31089799,66707.0,66706.0,0.1430747]
[1722316685505,0.79060599,66707.0,66706.0,0.1430747]
[1722316685934,0.78160599,66707.0,66706.0,0.1430747]
[1722316686129,0.78960599,66707.0,66706.0,0.1430747]
[1722316686362,0.54975199,66707.0,66706.0,0.1430747]
[1722316686737,0.54275199,66707.0,66706.0,0.1430747]
[1722316687227,0.54475199,66707.0,66706.0,0.1430747]
[1722316687427,0.54275199,66707.0,66706.0,0.1430747]
[1722316687742,0.65579165,66707.0,66706.0,0.1480747]
[1722316687946,0.53575199,66707.0,66706.0,0.1480747]
[1722316688367,0.61181466,66707.0,66706.0,0.1480747]
[1722316689206,0.53282618,66707.0,66706.0,0.1480747]
[1722316689592,0.45776351,66707.0,66706.0,0.1480747]
[1722316689815,0.4812792,66707.0,66706.0,0.1480747]
[1722316690176,0.45776351,66707.0,66706.0,0.1480747]
[1722316692461,0.21790951,66707.0,66706.0,0.1480747]
[1722316692842,0.56984121,66707.0,66706.0,0.1480747]
[1722316693045,0.45776351,66707.0,66706.0,0.1480747]
[1722316693646,0.4812792,66707.0,66706.0,0.1480747]
[1722316693845,0.69761751,66707.0,66706.0,0.1480747]
[1722316694458,1.01271384,66707.0,66706.0,0.0112747]
[1722316694671,1.14720658,66707.0,66706.0,0.0112747]
[1722316694832,1.01271384,66707.0,66706.0,0.0112747]
[1722316696386,1.01355384,66707.0,66706.0,0.0112747]
[1722316697453,1.03707113,66707.0,66706.0,0.0112747]
[1722316697683,1.03736908,66707.0,66706.0,0.0112747]
[1722316698144,0.69214358,66707.0,66706.0,0.1527747]
[1722316698391,0.4821208,66707.0,66706.0,0.1527747]
[1722316698926,0.2422668,66707.0,66706.0,0.1527747]
[1722316699162,0.1223398,66707.0,66706.0,0.2727037]
[1722316699397,0.02635729,66707.0,66706.0,0.2727037]
[1722316699653,0.02635729,66707.0,66706.0,0.5125617]
[1722316699654,0.07117458,66707.0,66706.0,0.5125617]
[1722316699867,0.07117458,66707.0,66706.0,0.2727037]
[1722316700290,0.08281204,66707.0,66706.0,0.1527747]
[1722316700675,0.08280521,66707.0,66706.0,0.1527747]
[1722316701022,0.08280521,66707.0,66706.0,0.1543289]
[1722316701223,0.03799475,66707.0,66706.0,0.1543289]
[1722316701682,0.03799475,66707.0,66706.0,0.1527747]
[1722316703196,0.02635729,66707.0,66706.0,0.1527747]
[1722316707330,0.07114344,66707.0,66706.0,0.1527747]
[1722316707552,0.12731575,66707.0,66706.0,0.1527747]
[1722316708540,0.02635729,66707.0,66706.0,0.1527747]
[1722316712989,0.14628429,66707.0,66706.0,0.1527747]
[1722316713382,0.02635729,66707.0,66706.0,0.1527747]
[1722316714109,0.12803363,66707.0,66706.0,0.1527747]
[1722316714467,0.10451634,66707.0,66706.0,0.1527747]
[1722316714920,0.22444334,66707.0,66706.0,0.1527747]
[1722316715063,0.10451634,66707.0,66706.0,0.1527747]
[1722316715288,0.14929788,66707.0,66706.0,0.1527747]
[1722316716753,0.14929788,66707.0,66706.0,0.2827037]
[1722316716911,0.00284,66707.0,66706.0,0.5225617]
[1722316717103,0.00284,66707.0,66706.0,0.5245617]
[1722316717430,0.01447859,66707.0,66706.0,0.5245617]
[1722316718015,0.01447859,66707.0,66706.0,1.0283999]
[1722316718016,0.03699379,66707.0,66706.0,1.0283999]
[1722316718456,0.03799379,66707.0,66706.0,1.0353999]
[1722316718617,0.03699379,66707.0,66706.0,1.0353999]
[1722316719314,0.01247859,66707.0,66706.0,1.0283999]
[1722316719515,0.01347859,66707.0,66706.0,1.0353999]
[1722316719718,0.01347859,66707.0,66706.0,0.96005274]
[1722316720160,0.01447859,66707.0,66706.0,0.96005274]
[1722316720375,0.01447859,66707.0,66706.0,0.94005274]
[1722316720734,0.01347859,66707.0,66706.0,0.1547747]
[1722316720939,0.01447859,66707.0,66706.0,0.1597747]
[1722316721161,0.13440559,66707.0,66706.0,0.1597747]
[1722316721403,0.00284,66707.0,66706.0,0.1597747]
[1722316722469,0.02635393,66707.0,66706.0,0.1597747]
[1722316722739,0.00284,66707.0,66706.0,0.2797037]
[1722316722971,0.00284,66707.0,66706.0,0.5195617]
[1722316723351,0.01447884,66707.0,66706.0,0.2797037]
[1722316724520,0.01447884,66707.0,66706.0,1.15991074]
[1722316724799,0.01447884,66707.0,66706.0,1.20491074]
[1722316725769,0.03799233,66707.0,66706.0,1.20491074]
[1722316727149,0.01447884,66707.0,66706.0,1.20491074]
[1722316727295,0.01447884,66707.0,66706.0,0.5195617]
[1722316727498,0.01447884,66707.0,66706.0,0.1597747]
[1722316728096,0.01447884,66707.0,66706.0,0.2797037]
[1722316729117,0.01447884,66707.0,66706.0,0.1597747]
[1722316729318,0.01447836,66707.0,66706.0,0.1597747]
[1722316730270,0.40452473,66707.0,66706.0,0.0182747]
[1722316730474,0.9418879,66707.0,66706.0,0.0182747]
[1722316730718,1.28010972,66707.0,66706.0,0.0182747]
[1722316730928,1.16812328,66707.0,66706.0,0.0182747]
[1722316731475,1.16712328,66707.0,66706.0,0.0112747]
[1722316731717,1.29827398,66707.0,66706.0,0.0182747]
[1722316731923,1.32179129,66707.0,66706.0,0.0182747]
[1722316732125,1.44790702,66707.0,66706.0,0.0112747]
[1722316732380,1.44790702,66707.0,66706.0,0.0122747]
[1722316732381,1.44743533,66707.0,66706.0,0.0122747]
[1722316732893,1.44743533,66707.0,66706.0,0.0132747]
[1722316733034,1.44718588,66707.0,66706.0,0.0132747]
[1722316733230,1.44618588,66707.0,66706.0,0.0072747]
[1722316733910,1.44618588,66707.0,66706.0,0.0062747]
[1722316734328,1.45618588,66707.0,66706.0,0.0062747]
[1722316734773,1.32603518,66707.0,66706.0,0.0062747]
[1722316735100,1.34955388,66707.0,66706.0,0.0062747]
[1722316735458,1.33003518,66707.0,66706.0,0.0062747]
[1722316735626,1.32003518,66707.0,66706.0,0.0062747]
[1722316735802,1.33403518,66707.0,66706.0,0.0062747]
[1722316736216,1.25878579,66707.0,66706.0,0.0062747]
[1722316736471,1.31622786,66707.0,66706.0,0.0062747]
[1722316736819,1.46451635,66707.0,66706.0,0.0062747]
[1722316737401,0.54748682,66707.0,66706.0,0.0062747]
[1722316737598,0.77934082,66707.0,66706.0,0.0062747]
[1722316738062,0.80285833,66707.0,66706.0,0.0062747]
[1722316738660,0.81285833,66707.0,66706.0,0.0062747]
[1722316738840,0.73741626,66707.0,66706.0,0.0062747]
[1722316739056,0.74141626,66707.0,66706.0,0.0062747]
[1722316739258,0.73141626,66707.0,66706.0,0.0062747]
[1722316739760,0.47804475,66707.0,66706.0,0.0062747]
[1722316739956,0.22419075,66707.0,66706.0,0.0062747]
[1722316740256,0.46804475,66707.0,66706.0,0.0062747]
[1722316740628,0.54363291,66707.0,66706.0,0.0062747]
[1722316740827,0.47204475,66707.0,66706.0,0.0062747]
[1722316741045,0.48204475,66707.0,66706.0,0.0062747]
[1722316741739,0.72189875,66707.0,66706.0,0.0062747]
[1722316741944,0.79453231,66707.0,66706.0,0.0062747]
[1722316742148,1.17488631,66707.0,66706.0,0.0062747]
[1722316742348,1.29175187,66707.0,66706.0,0.0062747]
[1722316742549,1.28575187,66707.0,66706.0,0.0062747]
[1722316742751,1.17488631,66707.0,66706.0,0.0062747]
[1722316743093,1.17888631,66707.0,66706.0,0.0062747]
[1722316743305,1.16888631,66707.0,66706.0,0.0062747]
[1722316743529,1.17888631,66707.0,66706.0,0.0062747]
[1722316743922,1.17488631,66707.0,66706.0,0.0062747]
[1722316744124,1.16488631,66707.0,66706.0,0.0062747]
[1722316744338,1.18840409,66707.0,66706.0,0.0062747]
[1722316744932,1.1883312,66707.0,66706.0,0.0062747]
[1722316745490,1.1923312,66707.0,66706.0,0.0062747]
[1722316745704,1.1983312,66707.0,66706.0,0.0062747]
[1722316745915,1.2023312,66707.0,66706.0,0.0062747]
[1722316746132,1.16881342,66707.0,66706.0,0.0062747]
[1722316746433,1.17381342,66707.0,66706.0,0.0062747]
[1722316746711,1.17681342,66707.0,66706.0,0.0062747]
[1722316746951,1.16781342,66707.0,66706.0,0.0062747]
[1722316747269,1.17681342,66707.0,66706.0,0.0062747]
[1722316747717,1.17981342,66707.0,66706.0,0.0062747]
[1722316748131,1.11303881,66707.0,66706.0,0.0062747]
[1722316748336,1.18864107,66707.0,66706.0,0.0062747]
[1722316748678,1.17964107,66707.0,66706.0,0.0062747]
[1722316749086,0.94878707,66707.0,66706.0,0.0062747]
[1722316749337,0.80028707,66707.0,66706.0,0.0062747]
[1722316749538,0.80880503,66707.0,66706.0,0.0062747]
[1722316749952,0.74120277,66707.0,66706.0,0.0062747]
[1722316750153,0.85302532,66707.0,66706.0,0.0062747]
[1722316750523,0.82950736,66707.0,66706.0,0.0062747]
[1722316751132,0.58092264,66707.0,66706.0,0.0062747]
[1722316751630,0.46910009,66707.0,66706.0,0.0062747]
[1722316752872,0.22924609,66707.0,66706.0,0.0062747]
[1722316753299,0.29636173,66707.0,66706.0,0.0062747]
[1722316753676,0.128767,66707.0,66706.0,0.0062747]
[1722316754064,0.17351395,66707.0,66706.0,0.0062747]
[1722316754278,0.128767,66707.0,66706.0,0.0062747]
[1722316754498,0.17351395,66707.0,66706.0,0.0062747]
[1722316754687,0.128767,66707.0,66706.0,0.0062747]
[1722316755439,0.00884,66707.0,66706.0,0.1487747]
[1722316755768,0.22905162,66707.0,66706.0,0.1487747]
[1722316755968,0.22905162,66707.0,66706.0,0.0866747]
[1722316756170,0.29617078,66707.0,66706.0,0.0866747]
[1722316756594,0.17624378,66707.0,66706.0,0.0866747]
[1722316756758,0.10912462,66707.0,66706.0,0.0866747]
[1722316756967,0.10912462,66707.0,66706.0,0.0062747]
[1722316757296,0.1538703,66707.0,66706.0,0.0062747]
[1722316757648,0.10912462,66707.0,66706.0,0.0062747]
[1722316757763,0.13264124,66707.0,66706.0,0.0078289]
[1722316758187,0.00884,66707.0,66706.0,0.0078289]
[1722316758396,0.00884,66707.0,66706.0,0.0062747]
[1722316758821,0.00884,66707.0,66706.0,0.2121037]
[1722316759019,0.00884,66707.0,66706.0,0.89515274]
[1722316759226,0.00884,66707.0,66706.0,0.5046617]
[1722316759445,0.00884,66707.0,66706.0,0.2648037]
[1722316759813,0.00884,66707.0,66706.0,0.7445197]
[1722316760139,0.00884,66707.0,66706.0,0.5046617]
[1722316760140,0.00084,66707.0,66706.0,0.5046617]
[1722316760338,0.00584,66707.0,66706.0,0.5046617]
[1722316760507,0.00684,66707.0,66706.0,0.5156617]
[1722316760738,0.00084,66707.0,66706.0,0.7445197]
[1722316761299,0.00284,66707.0,66706.0,0.2798037]
[1722316761443,0.00284,66707.0,66706.0,0.1488747]
[1722316761444,0.00184,66707.0,66706.0,0.1488747]
[1722316761844,0.00184,66707.0,66706.0,0.1598747]
[1722316761845,0.02635359,66707.0,66706.0,0.1598747]
[1722316763094,0.02435359,66707.0,66706.0,0.1448747]
[1722316763297,0.02435359,66707.0,66706.0,0.1618747]
[1722316763470,0.02635359,66707.0,66706.0,0.1618747]
[1722316763688,0.02635359,66707.0,66706.0,0.1508747]
[1722316763881,0.02535359,66707.0,66706.0,0.1558747]
[1722316764146,0.02635359,66707.0,66706.0,0.1558747]
[1722316764324,0.02535359,66707.0,66706.0,0.1508747]
[1722316764680,0.02635359,66707.0,66706.0,0.1618747]
[1722316764896,0.02635359,66707.0,66706.0,0.0232747]
[1722316765097,0.26620759,66707.0,66706.0,0.0232747]
[1722316765322,0.122767,66707.0,66706.0,0.0232747]
[1722316765478,0.00284,66707.0,66706.0,0.0232747]
[1722316768360,0.02635514,66707.0,66706.0,0.0232747]
[1722316769233,0.08510599,66707.0,66706.0,0.0232747]
[1722316769431,1.0732674,66707.0,66706.0,0.0232747]
[1722316769633,1.3131214,66707.0,66706.0,0.0232747]
[1722316770036,1.44737898,66707.0,66706.0,0.0232747]
[1722316770261,1.44737898,66707.0,66706.0,0.0172747]
[1722316770461,1.5960733,66707.0,66706.0,0.0062747]
[1722316770676,1.5970733,66707.0,66706.0,0.0122747]
[1722316770841,1.59769198,66707.0,66706.0,0.0062747]
[1722316771237,1.52311307,66707.0,66706.0,0.0062747]
[1722316771436,1.60495925,66707.0,66706.0,0.0072747]
[1722316772730,1.62847696,66707.0,66706.0,0.0072747]
[1722316772928,1.41838547,66707.0,66706.0,0.0072747]
[1722316773128,1.62850028,66707.0,66706.0,0.0072747]
[1722316773559,1.49423187,66707.0,66706.0,0.0072747]
[1722316773796,1.47071416,66707.0,66706.0,0.0072747]
[1722316773987,1.47069201,66707.0,66706.0,0.0072747]
[1722316774680,1.47069211,66707.0,66706.0,0.0072747]
[1722316776291,1.49420978,66707.0,66706.0,0.0072747]
[1722316777254,1.47069211,66707.0,66706.0,0.0072747]
[1722316777400,1.39486776,66707.0,66706.0,0.0072747]
[1722316777600,1.47071522,66707.0,66706.0,0.0072747]
[1722316779031,1.3200209,66707.0,66706.0,0.0072747]
[1722316780133,1.34353892,66707.0,66706.0,0.0072747]
[1722316780362,1.58339292,66707.0,66706.0,0.0072747]
[1722316780740,1.50754546,66707.0,66706.0,0.0072747]
[1722316780940,1.58278382,66707.0,66706.0,0.0072747]
[1722316781262,1.73234655,66707.0,66706.0,0.0072747]
[1722316781423,1.85987295,66707.0,66706.0,0.0072747]
[1722316781622,1.95987295,66707.0,66706.0,0.0072747]
[1722316781994,1.80882853,66707.0,66706.0,0.0072747]
[1722316782618,1.80682853,66707.0,66706.0,0.0072747]
[1722316782825,1.80682853,66707.0,66706.0,0.0022747]
[1722316782999,1.81982853,66707.0,66706.0,0.0032747]
[1722316783704,1.80682853,66707.0,66706.0,0.0022747]
[1722316783909,1.80046018,66707.0,66706.0,0.0012747]
[1722316784063,1.80046018,66707.0,66706.0,0.0022747]
[1722316784064,1.81346018,66707.0,66706.0,0.0022747]
[1722316784270,1.82746018,66707.0,66706.0,0.0022747]
[1722316784878,1.83697971,66707.0,66706.0,0.0022747]
[1722316785277,1.85097971,66707.0,66706.0,0.0022747]
[1722316786086,1.85092971,66707.0,66706.0,0.0022747]
[1722316786338,1.82741018,66707.0,66706.0,0.0022747]
[1722316786534,1.97836246,66707.0,66706.0,0.0022747]
[1722316786937,2.06726418,66707.0,66706.0,0.0022747]
[1722316787139,2.17391786,66707.0,66706.0,0.0022747]
[1722316789563,2.19743784,66707.0,66706.0,0.0022747]
[1722316789902,2.17391786,66707.0,66706.0,0.0022747]
[1722316790413,2.17413988,66707.0,66706.0,0.0022747]
[1722316791025,2.17413544,66707.0,66706.0,0.0022747]
[1722316792616,2.17384381,66707.0,66706.0,0.0022747]
[1722316793575,2.17364018,66707.0,66706.0,0.0022747]
[1722316794770,2.19716016,66707.0,66706.0,0.0022747]
[1722316796831,2.01704574,66707.0,66706.0,0.0022747]
[1722316797210,2.19715123,66707.0,66706.0,0.0022747]
[1722316797411,2.28285123,66707.0,66706.0,0.0022747]
[1722316798584,2.43360052,66707.0,66706.0,0.0022747]
[1722316799367,2.28285123,66707.0,66706.0,0.0022747]
[1722316799571,2.43359377,66707.0,66706.0,0.0022747]
[1722316800195,2.10274574,66707.0,66706.0,0.0022747]
[1722316800506,2.4338035,66707.0,66706.0,0.0022747]
[1722316800666,2.25348843,66707.0,66706.0,0.0022747]
[1722316800871,2.43380324,66707.0,66706.0,0.0022747]
[1722316801724,2.41028326,66707.0,66706.0,0.0022747]
[1722316802521,2.25969675,66707.0,66706.0,0.0022747]
[1722316805807,2.26115323,66707.0,66706.0,0.0022747]
[1722316806430,2.28467416,66707.0,66706.0,0.0022747]
[1722316806632,2.26115323,66707.0,66706.0,0.0022747]
[1722316809086,2.25971106,66707.0,66706.0,0.0022747]
[1722316810658,2.2499102,66707.0,66706.0,0.0022747]
[1722316811803,2.2499102,66707.0,66691.0,0.009273]
[1722316811804,1.079586,66692.0,66691.0,0.009273]
[1722316812003,1.50131488,66692.0,66691.0,0.009273]
[1722316812203,1.42082958,66692.0,66691.0,0.009273]
[1722316812536,1.8400394,66692.0,66691.0,0.009273]
[1722316812736,1.84003563,66692.0,66691.0,0.009273]
[1722316812882,1.96039879,66692.0,66691.0,0.009273]
[1722316814034,1.97139879,66692.0,66691.0,0.009273]
[1722316814254,1.97939879,66692.0,66691.0,0.009273]
[1722316814461,2.10659879,66692.0,66691.0,0.009273]
[1722316814752,2.12059879,66692.0,66691.0,0.009273]
[1722316814894,2.13459879,66692.0,66691.0,0.009273]
[1722316815295,2.13449888,66692.0,66691.0,0.009273]
[1722316815499,2.15802374,66692.0,66691.0,0.009273]
[1722316815709,2.14402374,66692.0,66691.0,0.009273]
[1722316816552,2.12923541,66692.0,66691.0,0.009273]
[1722316816819,2.11523541,66692.0,66691.0,0.009273]
[1722316817358,2.12923541,66692.0,66691.0,0.009273]
[1722316818421,2.12923541,66692.0,66676.0,0.009284]
[1722316818422,1.545575,66683.0,66676.0,0.009284]
[1722316818644,1.88681858,66683.0,66676.0,0.009284]
[1722316818892,1.405491,66677.0,66676.0,0.009284]
[1722316819078,1.81998018,66677.0,66676.0,0.009284]
[1722316819407,1.58001818,66677.0,66676.0,0.009284]
[1722316819649,1.7307125,66677.0,66676.0,0.009284]
[1722316819822,1.60354834,66677.0,66676.0,0.009284]
[1722316820034,1.73757058,66677.0,66676.0,0.148884]
[1722316820236,1.58001818,66677.0,66676.0,0.148884]
[1722316821114,1.59001818,66677.0,66676.0,0.148884]
[1722316821951,1.590647,66677.0,66676.0,0.009284]
[1722316822158,1.11435196,66677.0,66676.0,0.150584]
[1722316822364,1.12617754,66677.0,66676.0,0.150584]
[1722316822733,0.95980248,66677.0,66676.0,0.150584]
[1722316823061,1.07143732,66677.0,66676.0,0.150584]
[1722316823263,1.31139932,66677.0,66676.0,0.150584]
[1722316823466,1.22329364,66677.0,66676.0,0.150584]
[1722316823707,0.65107112,66677.0,66676.0,0.150584]
[1722316823917,0.8097447,66677.0,66676.0,0.150584]
[1722316824136,0.78621554,66677.0,66676.0,0.150584]
[1722316824377,0.87552356,66677.0,66676.0,0.150584]
[1722316824579,1.51290799,66677.0,66676.0,0.009284]
[1722316825080,1.88681938,66677.0,66676.0,0.009284]
[1722316825667,1.81101938,66677.0,66676.0,0.009284]
[1722316825839,1.91101938,66677.0,66676.0,0.009284]
[1722316826237,1.77706617,66677.0,66676.0,0.009284]
[1722316826440,1.91101938,66677.0,66676.0,0.009284]
[1722316826664,1.77706617,66677.0,66676.0,0.004284]
[1722316827047,1.78589202,66677.0,66676.0,0.004284]
[1722316827255,1.91449202,66677.0,66676.0,0.004284]
[1722316827470,1.91449202,66677.0,66672.0,9e-05]
[1722316827471,1.079896,66673.0,66672.0,9e-05]
[1722316827647,1.39342243,66673.0,66672.0,9e-05]
[1722316827845,1.62731766,66673.0,66672.0,9e-05]
[1722316828058,1.51695418,66673.0,66672.0,9e-05]
[1722316828309,1.5170927,66673.0,66672.0,9e-05]
[1722316828509,1.64425527,66673.0,66672.0,9e-05]
[1722316828972,1.64925527,66673.0,66672.0,9e-05]
[1722316829642,2.04113227,66673.0,66672.0,9e-05]
[1722316829844,2.14749845,66673.0,66672.0,9e-05]
[1722316830046,2.29812718,66673.0,66672.0,9e-05]
[1722316830220,2.04113227,66673.0,66672.0,9e-05]
[1722316830427,2.1474958,66673.0,66672.0,9e-05]
[1722316830632,2.03113227,66673.0,66672.0,9e-05]
[1722316830830,2.15168993,66673.0,66672.0,9e-05]
[1722316831000,2.14668993,66673.0,66672.0,9e-05]
[1722316831204,2.15668993,66673.0,66672.0,9e-05]
[1722316831466,2.16575196,66673.0,66672.0,9e-05]
[1722316831650,2.17089534,66673.0,66672.0,9e-05]
[1722316832055,2.18490089,66673.0,66672.0,9e-05]
[1722316832256,2.17090089,66673.0,66672.0,9e-05]
[1722316832484,2.15690089,66673.0,66672.0,9e-05]
[1722316832621,2.18090089,66673.0,66672.0,9e-05]
[1722316832828,2.3117861,66673.0,66672.0,9e-05]
[1722316833228,2.2977861,66673.0,66672.0,1e-05]
[1722316833429,2.15726269,66673.0,66672.0,1e-05]
[1722316833630,2.17220991,66673.0,66672.0,1e-05]
[1722316834074,2.14420991,66673.0,66672.0,1e-05]
[1722316834281,1.32988163,66670.0,66657.0,0.0801]
[1722316834596,2.18411953,66670.0,66657.0,0.0801]
[1722316834996,2.18411953,66670.0,66642.0,0.07534716]
[1722316834997,2.39142281,66670.0,66651.0,0.0791]
[1722316835221,2.39142281,66670.0,66642.0,0.07534716]
[1722316835222,0.840259,66646.0,66645.0,0.1453]
[1722316835377,1.29580258,66646.0,66645.0,0.1453]
[1722316835958,1.08150258,66646.0,66645.0,0.1453]
[1722316836143,0.71433601,66646.0,66645.0,0.1453]
[1722316836368,0.02354047,66646.0,66645.0,0.1453]
[1722316836593,0.02354047,66646.0,66645.0,0.505417]
[1722316836993,0.03654047,66646.0,66645.0,0.505417]
[1722316837260,0.03654047,66646.0,66645.0,0.66605004]
[1722316837392,0.013,66646.0,66645.0,0.65605004]
[1722316838008,0.120022,66654.0,66649.0,0.120031]
[1722316838233,0.240036,66657.0,66652.0,0.0818]
[1722316838437,0.120021,66655.0,66654.0,0.0818]
[1722316838652,0.360063,66655.0,66654.0,0.1468]
[1722316839335,0.600105,66655.0,66654.0,0.1468]
[1722316839950,0.62364069,66655.0,66654.0,0.1468]
[1722316840091,0.63064069,66655.0,66654.0,0.1468]
[1722316840315,0.87068269,66655.0,66654.0,0.1468]
[1722316840467,0.95775016,66655.0,66654.0,0.1468]
[1722316840869,0.93421447,66655.0,66654.0,0.1468]
[1722316841651,0.93521447,66655.0,66654.0,0.1468]